fUST/lending_fUST_20250414
["ID","MTS","AMOUNT","RATE_DAILY","PERIOD"]
[357971965,1744633833745,-151.0,0.0002453,2]
[357971966,1744633833756,-500.0,0.00024545,2]
[357971967,1744633833766,-2621.6,0.00024545,2]
[357971968,1744633833776,-2621.6,0.00024545,2]
[357971969,1744633833787,-2621.6,0.00024545,2]
[357971970,1744633833798,-2621.6,0.00024545,2]
[357971971,1744633833809,-2621.6,0.00024545,2]
[357971972,1744633833819,-2621.6,0.00024545,2]
[357971973,1744633833830,-2621.6,0.00024545,2]
[357971974,1744633833840,-2621.6,0.00024545,2]
[357971975,1744633833850,-2621.6,0.00024545,2]
[357971976,1744633833862,-2621.6,0.00024545,2]
[357971977,1744633833872,-2621.6,0.00024545,2]
[357971978,1744633833883,-2621.6,0.00024545,2]
[357971979,1744633833894,-2621.6,0.00024545,2]
[357971980,1744633833906,-2621.6,0.00024545,2]
[357971981,1744633833917,-2621.6,0.00024545,2]
[357971982,1744633833927,-2621.6,0.00024545,2]
[357971983,1744633833937,-2621.6,0.00024545,2]
[357971984,1744633833947,-2621.6,0.00024545,2]
[357971985,1744633833957,-2621.6,0.00024545,2]
[357971986,1744633833967,-2621.6,0.00024545,2]
[357971987,1744633833978,-2621.6,0.00024545,2]
[357971988,1744633833988,-2621.6,0.00024545,2]
[357971989,1744633833998,-2621.6,0.00024545,2]
[357971990,1744633834008,-2621.6,0.00024545,2]
[357971991,1744633834018,-2621.6,0.00024545,2]
[357971992,1744633834029,-2621.6,0.00024545,2]
[357971993,1744633834039,-2621.6,0.00024545,2]
[357971994,1744633834050,-2621.6,0.00024545,2]
[357971995,1744633834061,-2621.6,0.00024545,2]
[357971996,1744633834071,-2621.6,0.00024545,2]
[357971997,1744633834081,-2621.6,0.00024545,2]
[357971998,1744633834091,-2621.6,0.00024545,2]
[357971999,1744633834101,-2621.6,0.00024545,2]
[357972000,1744633834111,-67.06328262,0.00024545,2]
[357972001,1744633834126,-451.79522765,0.00024545,2]
[357972002,1744633834139,-960.05583154,0.00024545,2]
[357972043,1744633838053,-270.95635736,0.00023883,2]
[357972045,1744633838064,-537.3931386,0.00023982,2]
[357972047,1744633838074,-86.75369587,0.00024545,2]
[357972050,1744633838087,-434.81370448,0.00024545,2]
[357972058,1744633838164,-621.11825784,0.00024545,2]
[357972060,1744633838175,-2621.6,0.00024545,2]
[357972062,1744633838186,-2621.6,0.00024545,2]
[357972064,1744633838197,-2489.89520976,0.00024545,2]
[357972067,1744633838209,-131.80479024,0.00024545,2]
[357972069,1744633838220,-196.539453,0.00024545,7]
[357972071,1744633838229,-151.0,0.00024545,7]
[357972073,1744633838238,-151.0,0.00024545,7]
[357972075,1744633838248,-301.720079,0.00024545,7]
[357972076,1744633838258,-195.344634,0.00024545,7]
[357972078,1744633838268,-195.344634,0.00024545,7]
[357972080,1744633838278,-195.344634,0.00024545,7]
[357972082,1744633838287,-195.344634,0.00024545,7]
[357972084,1744633838297,-151.0,0.00024548,7]
[357972086,1744633838307,-1000.0,0.00024549,2]
[357972088,1744633838316,-156.587,0.00024585,2]
[357972090,1744633838325,-500.0,0.000246,2]
[357972092,1744633838335,-500.0,0.000246,2]
[357972094,1744633838344,-162.380719,0.0002464,2]
[357972096,1744633838354,-473.2456453,0.0002468,2]
[357972098,1744633838364,-168.3888056,0.00024695,2]
[357972100,1744633838373,-174.61919141,0.0002475,2]
[357972102,1744633838382,-151.0,0.000248,7]
[357972104,1744633838397,-151.0,0.000248,7]
[357972107,1744633838407,-151.0,0.000248,7]
[357972109,1744633838418,-5306.75813843,0.000248,2]
[357972110,1744633838427,-151.0,0.000248,7]
[357972112,1744633838437,-195.344634,0.000248,7]
[357972114,1744633838447,-195.344634,0.000248,7]
[357972117,1744633838457,-181.08010149,0.00024805,2]
[357972119,1744633838466,-500.0,0.00024819,2]
[357972121,1744633838476,-187.78006525,0.0002486,2]
[357972122,1744633838486,-171.06423258,0.0002487,2]
[357972124,1744633838495,-758.10830549,0.0002488,2]
[357972126,1744633838505,-160.893516,0.000249,7]
[357972128,1744633838515,-435.767915,0.000249,2]
[357972131,1744633838524,-151.0,0.000249,7]
[357972133,1744633838534,-435.767915,0.000249,2]
[357972135,1744633838543,-151.0,0.000249,7]
[357972137,1744633838552,-151.0,0.000249,7]
[357972139,1744633838562,-58079.89122128,0.000249,2]
[357972141,1744633838574,-694.2,0.000249,2]
[357972143,1744633838585,-1177.32957442,0.000249,2]
[357972577,1744633843114,-270.95635734,0.00023892,2]
[357972578,1744633843124,-151.0,0.00024545,7]
[357972579,1744633843135,-151.0,0.00024545,7]
[357972580,1744633843145,-212.095804,0.000248,7]
[357972581,1744633843156,-50986.19506221,0.000249,2]
[357972583,1744633843172,-2119.84925108,0.000249,2]
[357973097,1744634397719,-201.14950577,0.00021891,2]
[357973114,1744635032208,-475.9,0.00021891,2]
[357973117,1744635032239,-258.73888173,0.00021891,2]
[357973118,1744635032249,-167.44111827,0.0002271,2]
[357973119,1744635032260,-100.78962773,0.0002271,2]
[357973120,1744635032270,-453.0410027,0.00022791,2]
[357973144,1744635038351,-515.05593158,0.00022791,2]
[357973146,1744635038362,-156.92061257,0.00022791,2]
[357973149,1744635038372,-300.0,0.0002288,2]
[357973151,1744635038382,-510.66702621,0.0002288,2]
[357973153,1744635038392,-500.0,0.0002288,2]
[357973155,1744635038402,-191.72352887,0.0002288,2]
[357973156,1744635038411,-851.65470757,0.0002288,2]
[357973159,1744635038421,-500.0,0.0002288,2]
[357973161,1744635038431,-851.65470757,0.0002288,2]
[357973163,1744635038440,-851.65470757,0.0002288,2]
[357973165,1744635038450,-500.0,0.0002288,2]
[357973167,1744635038460,-500.0,0.0002288,2]
[357973169,1744635038469,-500.0,0.0002288,2]
[357973171,1744635038479,-500.0,0.0002288,2]
[357973173,1744635038489,-851.65470757,0.0002288,2]
[357973175,1744635038499,-431.49927337,0.0002288,2]
[357973176,1744635038509,-500.0,0.0002288,2]
[357973179,1744635038519,-851.65470757,0.0002288,2]
[357973181,1744635038529,-500.0,0.0002288,2]
[357973183,1744635038538,-851.65470757,0.0002288,2]
[357973185,1744635038549,-500.0,0.0002288,2]
[357973187,1744635038558,-500.0,0.0002288,2]
[357973189,1744635038568,-851.65470757,0.0002288,2]
[357973191,1744635038578,-386.03721398,0.0002288,2]
[357973193,1744635038588,-851.65470757,0.0002288,2]
[357973195,1744635038598,-851.65470757,0.0002288,2]
[357973197,1744635038609,-192.93394299,0.0002288,2]
[357973199,1744635038621,-658.72076458,0.0002288,2]
[357973201,1744635038630,-851.65470757,0.0002288,2]
[357973203,1744635038640,-851.65470757,0.0002288,2]
[357973205,1744635038650,-851.65470757,0.0002288,2]
[357973208,1744635038659,-851.65470757,0.0002288,2]
[357973210,1744635038668,-851.65470757,0.0002288,2]
[357973212,1744635038678,-851.65470757,0.0002288,2]
[357973214,1744635038688,-851.65470757,0.0002288,2]
[357973216,1744635038697,-851.65470757,0.0002288,2]
[357973217,1744635038706,-851.65470757,0.0002288,2]
[357973220,1744635038716,-851.65470757,0.0002288,2]
[357973222,1744635038726,-851.65470757,0.0002288,2]
[357973224,1744635038735,-851.65470757,0.0002288,2]
[357973239,1744635038875,-851.65470757,0.0002288,2]
[357973241,1744635038885,-851.65470757,0.0002288,2]
[357973243,1744635038894,-851.65470757,0.0002288,2]
[357973245,1744635038904,-851.65470757,0.0002288,2]
[357973247,1744635038913,-851.65470757,0.0002288,2]
[357973249,1744635038923,-851.65470757,0.0002288,2]
[357973251,1744635038932,-851.65470757,0.0002288,2]
[357973253,1744635038942,-851.65470757,0.0002288,2]
[357973255,1744635038951,-851.65470757,0.0002288,2]
[357973257,1744635038961,-851.65470757,0.0002288,2]
[357973260,1744635038971,-851.65470757,0.0002288,2]
[357973262,1744635038980,-851.65470757,0.0002288,2]
[357973264,1744635038989,-851.65470757,0.0002288,2]
[357973266,1744635038999,-851.65470757,0.0002288,2]
[357973267,1744635039009,-851.65470757,0.0002288,2]
[357973270,1744635039019,-851.65470757,0.0002288,2]
[357973271,1744635039030,-851.65470757,0.0002288,2]
[357973274,1744635039040,-851.65470757,0.0002288,2]
[357973276,1744635039050,-851.65470757,0.0002288,2]
[357973278,1744635039059,-851.65470757,0.0002288,2]
[357973280,1744635039070,-851.65470757,0.0002288,2]
[357973282,1744635039080,-851.65470757,0.0002288,2]
[357973284,1744635039089,-851.65470757,0.0002288,2]
[357973286,1744635039100,-851.65470757,0.0002288,2]
[357973288,1744635039111,-851.65470757,0.0002288,2]
[357973290,1744635039121,-851.65470757,0.0002288,2]
[357973292,1744635039131,-851.65470757,0.0002288,2]
[357973294,1744635039140,-851.65470757,0.0002288,2]
[357973296,1744635039150,-851.65470757,0.0002288,2]
[357973298,1744635039159,-300.0,0.00022881,2]
[357973300,1744635039169,-8990.38676786,0.00022881,2]
[357973302,1744635039178,-4033.4512643,0.00022888,2]
[357973304,1744635039193,-20866.5487357,0.00022888,2]
[357973306,1744635039202,-666.193171,0.00022891,2]
[357973308,1744635039212,-500.0,0.000229,2]
[357973310,1744635039222,-500.0,0.000229,2]
[357973312,1744635039231,-355.63416494,0.000229,2]
[357973314,1744635039241,-500.0,0.000229,2]
[357973316,1744635039252,-500.0,0.000229,2]
[357973318,1744635039262,-500.0,0.000229,2]
[357973321,1744635039273,-3864.4996342,0.00022935,2]
[357973322,1744635039282,-250.0,0.00023048,2]
[357973325,1744635039292,-1679.9622999,0.00023048,2]
[357973326,1744635039301,-195.5580192,0.00023656,2]
[357973329,1744635039311,-160.0,0.0002369,2]
[357973331,1744635039321,-1000.0,0.000238,2]
[357973333,1744635039330,-160.0,0.00023983,2]
[357973335,1744635039340,-625.91842077,0.000243,5]
[357973336,1744635039350,-625.91842052,0.00024452,5]
[357973339,1744635039360,-500.0,0.00024658,2]
[357973341,1744635039369,-500.0,0.00024658,2]
[357973343,1744635039379,-500.0,0.00024658,2]
[357973345,1744635039389,-500.0,0.00024658,2]
[357973347,1744635039398,-500.0,0.00024658,2]
[357973349,1744635039408,-500.0,0.00024658,2]
[357973351,1744635039419,-331.3090212,0.00024658,2]
[357973353,1744635039430,-420.0,0.00024841,2]
[357973355,1744635039440,-151.0,0.00024885,2]
[357973357,1744635039450,-151.0,0.000249,7]
[357973359,1744635039460,-312.594165,0.000249,2]
[357973361,1744635039470,-300.89598467,0.000249,2]
[357973363,1744635039483,-11.69818033,0.000249,2]
[357973366,1744635039492,-151.0,0.000249,7]
[357973367,1744635039503,-500.03596678,0.000249,2]
[357973370,1744635039512,-151.0,0.000249,7]
[357973371,1744635039522,-965.66843852,0.000249,2]
[357973378,1744635039574,-1638.134396,0.000249,2]
[357973772,1744635043590,-64486.90806813,0.000249,2]
[357974054,1744636232374,-160.0,0.00022792,2]
[357974056,1744636232385,-151.0,0.00022862,2]
[357974058,1744636232399,-300.0,0.0002287,2]
[357974060,1744636232408,-300.0,0.0002287,2]
[357974062,1744636232418,-3135.63890435,0.00022871,2]
[357974064,1744636232432,-4221.56783491,0.00022871,2]
[357974066,1744636232442,-500.0,0.00022879,2]
[357974068,1744636232452,-500.0,0.000229,2]
[357974070,1744636232464,-500.0,0.000229,2]
[357974072,1744636232474,-500.0,0.000229,2]
[357974074,1744636232486,-500.0,0.000229,2]
[357974076,1744636232497,-276.43676059,0.00022917,2]
[357974078,1744636232508,-158.5646888,0.00023849,2]
[357974080,1744636232519,-598.00037255,0.000244,5]
[357974082,1744636232531,-598.00037239,0.00024452,5]
[357974084,1744636232542,-10462.2094799,0.00024711,2]
[357974086,1744636232563,-13518.7064146,0.00024711,2]
[357974088,1744636232574,-156.92061257,0.00024849,2]
[357974090,1744636232584,-420.0,0.00024945,2]
[357974092,1744636232595,-674.98242716,0.00025,2]
[357974093,1744636232605,-598.00037239,0.00025003,5]
[357974094,1744636232615,-250.0,0.00025006,2]
[357974095,1744636232625,-847.08481746,0.00025219,2]
[357974096,1744636232636,-1000.0,0.00025516,5]
[357974097,1744636232647,-598.00037239,0.00025555,6]
[357974098,1744636232658,-153.0,0.00025753,2]
[357974099,1744636232669,-174.1312848,0.00025753,2]
[357974100,1744636232679,-625.7,0.00026,2]
[357974101,1744636232690,-598.00037239,0.00026107,6]
[357974102,1744636232700,-500.0,0.00026526,2]
[357974103,1744636232711,-531.7197762,0.00026587,4]
[357974104,1744636232721,-183.66314054,0.00026636,2]
[357974105,1744636232731,-176.69761266,0.00026636,2]
[357974106,1744636232742,-718.43346847,0.00026644,2]
[357974107,1744636232752,-598.00037239,0.00026659,6]
[357974108,1744636232762,-632.0,0.000268,2]
[357974109,1744636232773,-152.758153,0.00026845,7]
[357974110,1744636232783,-236.832,0.00026848,14]
[357974111,1744636232793,-643.99750005,0.00026854,2]
[357974112,1744636232807,-193.413,0.00026855,2]
[357974113,1744636232817,-197.598,0.00026855,2]
[357974114,1744636232827,-227.898,0.00026855,2]
[357974115,1744636232837,-281.237,0.00026855,2]
[357974116,1744636232848,-543.0,0.00026855,2]
[357974117,1744636232858,-852.763,0.00026855,2]
[357974118,1744636232867,-2260.0,0.00026855,2]
[357974119,1744636232877,-434.332,0.00026855,2]
[357974120,1744636232887,-402.0,0.00026855,2]
[357974121,1744636232897,-13247.63030292,0.0002698,2]
[357974122,1744636232914,-21985.66620473,0.0002698,2]
[357974123,1744636232926,-1419.49748092,0.0002698,2]
[357974164,1744636238777,-320.67080155,0.0002287,2]
[357974166,1744636238787,-500.0,0.0002287,2]
[357974168,1744636238798,-333.30604781,0.0002287,2]
[357974170,1744636238810,-500.0,0.0002287,2]
[357974172,1744636238819,-500.0,0.0002287,2]
[357974174,1744636238829,-500.0,0.0002287,2]
[357974176,1744636238838,-500.0,0.0002287,2]
[357974178,1744636238847,-500.0,0.0002287,2]
[357974180,1744636238857,-500.0,0.0002287,2]
[357974182,1744636238870,-106.87315064,0.0002287,2]
[357974372,1744636240810,-393.12684936,0.0002287,2]
[357974374,1744636240821,-500.0,0.0002287,2]
[357974377,1744636240831,-500.0,0.0002287,2]
[357974379,1744636240841,-500.0,0.0002287,2]
[357974381,1744636240851,-500.0,0.0002287,2]
[357974383,1744636240861,-200.48178626,0.0002287,2]
[357974669,1744636243523,-299.51821374,0.0002287,2]
[357974671,1744636243533,-500.0,0.0002287,2]
[357974673,1744636243543,-500.0,0.0002287,2]
[357974674,1744636243552,-500.0,0.0002287,2]
[357974676,1744636243563,-500.0,0.0002287,2]
[357974678,1744636243572,-388.003201,0.0002287,2]
[357974949,1744636246552,-111.996799,0.0002287,2]
[357974950,1744636246563,-500.0,0.0002287,2]
[357974951,1744636246574,-500.0,0.0002287,2]
[357974952,1744636246583,-500.0,0.0002287,2]
[357974953,1744636246592,-500.0,0.0002287,2]
[357974954,1744636246602,-500.0,0.0002287,2]
[357974955,1744636246611,-500.0,0.0002287,2]
[357974956,1744636246622,-130.5901797,0.0002287,2]
[357975131,1744636540497,-171.24835046,0.00045363,120]
[357975132,1744636540523,-500.0,0.00045363,90]
[357975133,1744636540549,-10000.0,0.00045363,120]
[357975134,1744636540576,-2469.0789762,0.00045363,120]
[357975135,1744636540602,-2723.16224916,0.00045363,120]
[357975136,1744636540627,-305.0,0.00045363,120]
[357975137,1744636540653,-1859.0,0.00045363,120]
[357975138,1744636540679,-161.0,0.00045363,31]
[357975139,1744636540704,-160.0,0.00045363,31]
[357975140,1744636540729,-317.53399166,0.00045363,60]
[357975141,1744636540756,-500.0,0.00045363,60]
[357975142,1744636540781,-443.23,0.00045363,60]
[357975143,1744636540808,-500.0,0.00045363,60]
[357975144,1744636540833,-403.93,0.00045363,60]
[357975145,1744636540859,-500.0,0.00045363,60]
[357975146,1744636540884,-366.27,0.00045363,60]
[357975147,1744636540910,-500.0,0.00045363,60]
[357975148,1744636540936,-330.17,0.00045363,60]
[357975149,1744636540963,-15000.0,0.00045363,30]
[357975150,1744636540987,-15000.0,0.00045363,120]
[357975151,1744636541012,-217.83086422,0.00045363,30]
[357975152,1744636541037,-2000.0,0.00045363,30]
[357975153,1744636541062,-500.0,0.00045363,60]
[357975154,1744636541086,-295.58,0.00045363,60]
[357975155,1744636541110,-500.0,0.00045363,60]
[357975156,1744636541135,-262.43,0.00045363,60]
[357975157,1744636541160,-500.0,0.00045363,60]
[357975158,1744636541185,-200.22,0.00045363,60]
[357975159,1744636541211,-692.22,0.00045363,60]
[357975160,1744636541238,-692.22,0.00045363,60]
[357975161,1744636541264,-692.22,0.00045363,60]
[357975162,1744636541290,-692.22,0.00045363,60]
[357975163,1744636541316,-692.22,0.00045363,60]
[357975164,1744636541342,-692.22,0.00045363,60]
[357975165,1744636541368,-692.22,0.00045363,60]
[357975166,1744636541394,-692.22,0.00045363,60]
[357975167,1744636541419,-692.22,0.00045363,60]
[357975168,1744636541444,-692.22,0.00045363,60]
[357975169,1744636541470,-692.22,0.00045363,60]
[357975170,1744636541499,-692.22,0.00045363,60]
[357975171,1744636541524,-692.22,0.00045363,60]
[357975172,1744636541550,-692.22,0.00045363,60]
[357975173,1744636541576,-692.22,0.00045363,60]
[357975174,1744636541601,-692.22,0.00045363,60]
[357975175,1744636541628,-692.22,0.00045363,60]
[357975176,1744636541653,-692.22,0.00045363,60]
[357975177,1744636541679,-692.22,0.00045363,60]
[357975178,1744636541706,-692.22,0.00045363,60]
[357975179,1744636541732,-692.22,0.00045363,60]
[357975180,1744636541759,-692.22,0.00045363,60]
[357975181,1744636541784,-692.22,0.00045363,60]
[357975182,1744636541814,-692.22229855,0.00045363,60]
[357975183,1744636541843,-500.0,0.00045363,60]
[357975184,1744636541872,-171.04,0.00045363,60]
[357975185,1744636541901,-324.58975507,0.00045363,120]
[357975186,1744636541930,-40366.0,0.00045363,32]
[357975187,1744636541956,-35747.52352791,0.00045363,32]
[357975188,1744636541982,-1931.5881385,0.00045363,120]
[357975189,1744636542009,-20287.80400177,0.00045363,30]
[357975190,1744636542035,-1119.06033941,0.00045363,30]
[357975191,1744636542063,-10013.84936238,0.00045363,120]
[357975192,1744636542088,-1877.0,0.00045363,120]
[357975193,1744636542114,-156.7076697,0.00045363,120]
[357975194,1744636542139,-537.01778492,0.00045363,31]
[357975195,1744636542163,-482.97301892,0.00045363,60]
[357975196,1744636542187,-158.52323011,0.00045363,30]
[357975197,1744636542210,-3505.50278486,0.00045363,60]
[357975198,1744636542233,-674.38586337,0.00045363,30]
[357975199,1744636542256,-5186.10570655,0.00045363,30]
[357975200,1744636542280,-10059.0,0.00045363,30]
[357975201,1744636542304,-2650.84404795,0.00045363,120]
[357975202,1744636542329,-100000.0,0.00045363,30]
[357975203,1744636542353,-100000.0,0.00045363,30]
[357975204,1744636542376,-2043.87004544,0.00045363,30]
[357975205,1744636542402,-100000.0,0.00045363,30]
[357975206,1744636542426,-100000.0,0.00045363,30]
[357975207,1744636542451,-371867.92807443,0.00045363,60]
[357975208,1744636542475,-1095.17715107,0.00045363,120]
[357975209,1744636542502,-273803.4794508,0.00045363,32]
[357975210,1744636542527,-73349.1795991,0.00045363,120]
[357975211,1744636542555,-304.53312724,0.00045363,120]
[357975212,1744636542582,-637.8726495,0.00045363,120]
[357975213,1744636542608,-210.0,0.00045363,30]
[357975214,1744636542633,-556.26939063,0.00045363,120]
[357975215,1744636542659,-378.0,0.00045363,30]
[357975216,1744636542685,-1843.0,0.00045363,120]
[357975217,1744636542906,-730.55085138,0.00045363,30]
[357975218,1744636542935,-250.79437568,0.00045363,120]
[357975219,1744636542962,-929.74159489,0.00045363,30]
[357975220,1744636542989,-25949.20560426,0.00045363,30]
[357975221,1744636543016,-986.1049779,0.00045363,30]
[357975222,1744636543042,-20601.24769031,0.00045363,120]
[357975223,1744636543069,-1537.92178946,0.00045363,30]
[357975224,1744636543094,-339.89813766,0.00045363,120]
[357975225,1744636543119,-938.57634532,0.00045363,120]
[357975226,1744636543145,-257.19412268,0.00045363,30]
[357975227,1744636543170,-1499.48626462,0.00045363,30]
[357975228,1744636543197,-1214.84688456,0.00045363,120]
[357975229,1744636543223,-608.84166165,0.00045363,120]
[357975230,1744636543248,-1479.64189806,0.00045363,120]
[357975231,1744636543273,-753.20296534,0.00045363,120]
[357975232,1744636543298,-2914.40686074,0.00045363,60]
[357975233,1744636543324,-741.03242186,0.00045363,120]
[357975234,1744636543350,-4675.0,0.00045363,30]
[357975235,1744636543375,-202.0,0.00045363,60]
[357975236,1744636543402,-250.22102835,0.00045363,120]
[357975237,1744636543428,-2000.0,0.00045363,120]
[357975238,1744636543454,-1496.0672315,0.00045363,120]
[357975239,1744636543485,-2411.08825478,0.00045363,120]
[357975240,1744636543515,-10171.64590964,0.00045363,30]
[357975241,1744636543542,-500.0,0.00045363,30]
[357975242,1744636543568,-500.0,0.00045363,30]
[357975243,1744636543594,-500.0,0.00045363,30]
[357975244,1744636543621,-151.0,0.00045363,120]
[357975245,1744636564339,-1000.0,0.00027397,30]
[357975246,1744636564386,-1000.0,0.00027671,30]
[357975247,1744636564431,-1000.0,0.00027945,30]
[357975248,1744636564460,-156.8657715,0.00027945,30]
[357975249,1744636564494,-238.9355885,0.00027945,30]
[357975250,1744636564526,-213.6678568,0.00027945,30]
[357975251,1744636564553,-306.0,0.00027945,30]
[357975252,1744636564581,-565.0530007,0.00027945,30]
[357975253,1744636564610,-156.8657715,0.00027945,30]
[357975254,1744636564637,-213.6678568,0.00027945,30]
[357975255,1744636564665,-565.0530007,0.00027945,30]
[357975256,1744636564694,-213.6678568,0.00027945,30]
[357975257,1744636564722,-156.8657715,0.00027945,30]
[357975258,1744636564749,-565.0530007,0.00027945,30]
[357975259,1744636564777,-156.8657715,0.00027945,30]
[357975260,1744636564804,-213.4410916,0.00027945,30]
[357975261,1744636564832,-563.4090847,0.00027945,30]
[357975262,1744636564860,-156.699658,0.00027945,30]
[357975263,1744636564888,-156.8657715,0.00027945,30]
[357975264,1744636564916,-151.0,0.00028,120]
[357975265,1744636564960,-1000.0,0.00028219,30]
[357975266,1744636565001,-1000.0,0.00028493,30]
[357975267,1744636565041,-1000.0,0.00028767,30]
[357975268,1744636565072,-156.8657715,0.00028767,30]
[357975269,1744636565101,-156.8657715,0.00028767,30]
[357975270,1744636565127,-155.7157728,0.00028767,30]
[357975271,1744636565166,-406.45763476,0.00029041,30]
[357975272,1744636565195,-156.8657715,0.00029041,30]
[357975273,1744636565359,-156.8657715,0.00029041,30]
[357975274,1744636565388,-156.8657715,0.00029041,30]
[357975275,1744636565416,-156.8657715,0.00029041,30]
[357975276,1744636565463,-160.0,0.000296,30]
[357975277,1744636565501,-199.00742226,0.0003,120]
[357975278,1744636565533,-20000.0,0.0003,120]
[357975279,1744636565617,-913.85,0.00032,120]
[357975280,1744636565663,-500.0,0.00032876,120]
[357975281,1744636565689,-389.05137362,0.00032876,120]
[357975282,1744636565716,-300.0,0.00032876,30]
[357975283,1744636565744,-300.0,0.00032876,30]
[357975284,1744636565771,-300.0,0.00032876,30]
[357975285,1744636565799,-300.0,0.00032876,30]
[357975286,1744636565827,-300.0,0.00032876,30]
[357975287,1744636565856,-300.0,0.00032876,30]
[357975288,1744636565884,-300.0,0.00032876,30]
[357975289,1744636565911,-300.0,0.00032876,30]
[357975290,1744636565938,-300.0,0.00032876,30]
[357975291,1744636565964,-300.0,0.00032876,30]
[357975292,1744636565991,-300.0,0.00032876,30]
[357975293,1744636566018,-300.0,0.00032876,30]
[357975294,1744636566045,-300.0,0.00032876,30]
[357975295,1744636566072,-300.0,0.00032876,30]
[357975296,1744636566100,-300.0,0.00032876,30]
[357975297,1744636566129,-300.0,0.00032876,30]
[357975298,1744636566156,-300.0,0.00032876,30]
[357975299,1744636566182,-300.0,0.00032876,30]
[357975300,1744636566209,-300.0,0.00032876,30]
[357975301,1744636566235,-300.0,0.00032876,30]
[357975302,1744636566261,-323.93377458,0.00032876,30]
[357975303,1744636566291,-20000.0,0.00033,120]
[357975304,1744636566323,-158.502434,0.0003337,60]
[357975305,1744636566356,-151.89673624,0.00033452,30]
[357975306,1744636566387,-151.89673624,0.00033699,30]
[357975307,1744636566414,-151.89673624,0.00033945,30]
[357975308,1744636566440,-462.7796033,0.0003409,30]
[357975309,1744636566466,-151.89673624,0.00034192,30]
[357975310,1744636566492,-151.89673624,0.00034466,30]
[357975311,1744636566523,-151.89673624,0.00034712,30]
[357975312,1744636566551,-500.0,0.000349,120]
[357975313,1744636566577,-151.89673624,0.00034959,30]
[357975314,1744636566607,-500.0,0.00035,120]
[357975315,1744636566633,-160.0,0.00035,30]
[357975316,1744636566660,-151.89673624,0.00035233,30]
[357975317,1744636566690,-200.0,0.00036,120]
[357975318,1744636566717,-20000.0,0.00036,120]
[357975319,1744636566744,-1272173.16209334,0.000365,120]
[357975320,1744636566771,-500.0,0.00037,120]
[357975321,1744636566798,-160.0,0.00037,120]
[357975322,1744636566825,-312.45808972,0.00037,120]
[357975323,1744636566855,-554.47687058,0.00038,120]
[357975324,1744636566883,-500.0,0.00038,120]
[357975325,1744636566912,-160.0,0.00038,120]
[357975326,1744636566941,-151.0,0.00038086,30]
[357975327,1744636566968,-700.0,0.00038356,120]
[357975328,1744636566995,-700.0,0.00038356,120]
[357975329,1744636567023,-583.04151817,0.00038356,120]
[357975330,1744636567050,-200.0,0.00038497,120]
[357975331,1744636567076,-254.0,0.000385,120]
[357975332,1744636567103,-20000.0,0.00039,120]
[357975333,1744636567131,-200.0,0.00039462,120]
[357975334,1744636567157,-200.0,0.0003966,120]
[357975335,1744636567184,-200.0,0.0003967,120]
[357975336,1744636567211,-1000.0,0.000398,120]
[357975337,1744636567239,-200.0,0.00039937,120]
[357975338,1744636567266,-151.0,0.00039999,31]
[357975339,1744636567292,-1617165.21804115,0.0004,30]
[357975340,1744636572417,-3000000.0,0.0004,30]
[357975342,1744636580752,-3000000.0,0.0004,30]
[357975343,1744636585144,-3000000.0,0.0004,30]
[357975344,1744636597711,-3000000.0,0.0004,30]
[357975345,1744636625306,-3000000.0,0.0004,30]